[Event "January 9 Early 2024"]
[Site "https://www.chess.com"]
[Date "2024.01.11"]
[Round "1"]
[White "Bolat, Inayat"]
[Black "Bologan, Victor"]
[Result "0-1"]
[Board "242"]
[TimeControl "180+1"]
[WhiteFideId "13733125"]
[BlackFideId "13900048"]
[WhiteElo "2435"]
[BlackElo "2791"]
[WhiteTeam "KAZ"]
[BlackTeam "MDA"]
[WhiteClock "0:00:03"]
[BlackClock "0:00:10"]

1. e4 {[%clk 0:03:00]}  c5 {[%clk 0:02:59]} 2. Nf3 {[%clk 0:03:00]}  d6 {[%clk 0:02:59]} 3. d4 {[%clk 0:03:00]}  cxd4 {[%clk 0:02:59]} 4. Nxd4 {[%clk 0:03:01]}  Nf6 {[%clk 0:02:58]} 5. Nc3 {[%clk 0:03:01]}  a6 {[%clk 0:02:58]} 6. Bd3 {[%clk 0:02:59]}  g6 {[%clk 0:02:53]} 7. f3 {[%clk 0:02:52]}  Bg7 {[%clk 0:02:53]} 8. Be3 {[%clk 0:02:53]}  b5 {[%clk 0:02:50]} 9. a4 {[%clk 0:02:47]}  b4 {[%clk 0:02:49]} 10. Na2 {[%clk 0:02:48]}  a5 {[%clk 0:02:41]} 11. c3 {[%clk 0:02:47]}  bxc3 {[%clk 0:02:40]} 12. Nxc3 {[%clk 0:02:48]}  O-O {[%clk 0:02:40]} 13. O-O {[%clk 0:02:46]}  Bb7 {[%clk 0:02:32]} 14. Qe2 {[%clk 0:02:39]}  Na6 {[%clk 0:02:30]} 15. Rfd1 {[%clk 0:02:36]}  Nb4 {[%clk 0:02:27]} 16. Bc4 {[%clk 0:02:33]}  Qb8 {[%clk 0:02:13]} 17. Ndb5 {[%clk 0:02:27]}  Rd8 {[%clk 0:02:08]} 18. Rac1 {[%clk 0:02:24]}  d5 {[%clk 0:02:02]} 19. exd5 {[%clk 0:02:16]}  Nfxd5 {[%clk 0:01:56]} 20. Nxd5 {[%clk 0:02:08]}  Bxd5 {[%clk 0:01:55]} 21. Bxd5 {[%clk 0:02:08]}  Nxd5 {[%clk 0:01:54]} 22. Bc5 {[%clk 0:02:00]}  e6 {[%clk 0:01:49]} 23. b3 {[%clk 0:01:55]}  Qb7 {[%clk 0:01:47]} 24. Bd4 {[%clk 0:01:44]}  Bxd4+ {[%clk 0:01:36]} 25. Rxd4 {[%clk 0:01:40]}  Rac8 {[%clk 0:01:34]} 26. Rcd1 {[%clk 0:01:33]}  Qb6 {[%clk 0:01:28]} 27. Kh1 {[%clk 0:01:33]}  Re8 {[%clk 0:01:24]} 28. Qd2 {[%clk 0:01:30]}  Rc5 {[%clk 0:01:22]} 29. h3 {[%clk 0:01:25]}  Rec8 {[%clk 0:01:21]} 30. Qh6 {[%clk 0:01:21]}  Rc2 {[%clk 0:00:58]} 31. Rh4 {[%clk 0:00:54]}  Qf2 {[%clk 0:00:51]} 32. Qxh7+ {[%clk 0:00:49]}  Kf8 {[%clk 0:00:51]} 33. Rg4 {[%clk 0:00:45]}  Ke7 {[%clk 0:00:43]} 34. Qh6 {[%clk 0:00:33]}  Nf6 {[%clk 0:00:33]} 35. Rxg6 {[%clk 0:00:21]}  Qe2 {[%clk 0:00:20]} 36. Rg1 {[%clk 0:00:10]}  Qe5 {[%clk 0:00:19]} 37. Rg5 {[%clk 0:00:08]}  Qf4 {[%clk 0:00:17]} 38. Qg7 {[%clk 0:00:05]}  Rc1 {[%clk 0:00:15]} 39. Rg3 {[%clk 0:00:03]}  Qe3 {[%clk 0:00:11]} 40. Rxc1 {[%clk 0:00:02]}  Rxc1+ {[%clk 0:00:10]} 41. Kh2 {[%clk 0:00:03]}  Qg1# {[%clk 0:00:10]} 0-1

[Event "January 9 Early 2024"]
[Site "https://www.chess.com"]
[Date "2024.01.11"]
[Round "1"]
[White "Silvestre, Christian"]
[Black "Golubev, Mikhail"]
[Result "0-1"]
[Board "243"]
[TimeControl "180+1"]
[WhiteFideId "30956269"]
[BlackFideId "14100983"]
[WhiteElo "2293"]
[BlackElo "2638"]
[WhiteTeam "USA"]
[BlackTeam "UKR"]
[WhiteClock "0:00:23"]
[BlackClock "0:00:04"]

1. d4 {[%clk 0:02:59]}  Nf6 {[%clk 0:02:59]} 2. Nf3 {[%clk 0:02:59]}  d6 {[%clk 0:02:58]} 3. g3 {[%clk 0:02:59]}  g6 {[%clk 0:02:57]} 4. Bg2 {[%clk 0:03:00]}  Bg7 {[%clk 0:02:58]} 5. O-O {[%clk 0:03:00]}  O-O {[%clk 0:02:58]} 6. c4 {[%clk 0:03:00]}  Nbd7 {[%clk 0:02:56]} 7. Nc3 {[%clk 0:02:59]}  e5 {[%clk 0:02:56]} 8. e4 {[%clk 0:02:53]}  Re8 {[%clk 0:02:56]} 9. Re1 {[%clk 0:02:52]}  exd4 {[%clk 0:02:54]} 10. Nxd4 {[%clk 0:02:51]}  c6 {[%clk 0:02:50]} 11. h3 {[%clk 0:02:51]}  Qb6 {[%clk 0:02:50]} 12. Nc2 {[%clk 0:02:43]}  Ne5 {[%clk 0:02:49]} 13. b3 {[%clk 0:02:41]}  Nfd7 {[%clk 0:02:38]} 14. Be3 {[%clk 0:02:39]}  Qa5 {[%clk 0:02:36]} 15. Ne2 {[%clk 0:01:55]}  Nf6 {[%clk 0:02:32]} 16. Qxd6 {[%clk 0:01:48]}  Bxh3 {[%clk 0:02:23]} 17. Bxh3 {[%clk 0:01:42]}  Nxe4 {[%clk 0:02:11]} 18. Qb4 {[%clk 0:01:36]}  Qxb4 {[%clk 0:02:07]} 19. Nxb4 {[%clk 0:01:37]}  Nf3+ {[%clk 0:02:06]} 20. Kg2 {[%clk 0:01:36]}  Nxe1+ {[%clk 0:02:03]} 21. Rxe1 {[%clk 0:01:37]}  a5 {[%clk 0:01:55]} 22. Nc2 {[%clk 0:01:29]}  a4 {[%clk 0:01:52]} 23. b4 {[%clk 0:01:24]}  Rad8 {[%clk 0:01:41]} 24. b5 {[%clk 0:01:23]}  cxb5 {[%clk 0:01:18]} 25. cxb5 {[%clk 0:01:23]}  Rd3 {[%clk 0:01:06]} 26. a3 {[%clk 0:01:15]}  Nc3 {[%clk 0:00:52]} 27. Nxc3 {[%clk 0:01:14]}  Rxc3 {[%clk 0:00:51]} 28. Nb4 {[%clk 0:01:03]}  Rxa3 {[%clk 0:00:44]} 29. Bd7 {[%clk 0:00:54]}  Rd8 {[%clk 0:00:36]} 30. Bg4 {[%clk 0:00:50]}  Rb3 {[%clk 0:00:31]} 31. Nc2 {[%clk 0:00:49]}  a3 {[%clk 0:00:26]} 32. Bf3 {[%clk 0:00:42]}  a2 {[%clk 0:00:16]} 33. Bb6 {[%clk 0:00:23]}  Rc8 {[%clk 0:00:12]} 34. Bxb7 {[%clk 0:00:19]}  Rxc2 {[%clk 0:00:10]} 35. Re8+ {[%clk 0:00:20]}  Bf8 {[%clk 0:00:09]} 36. Be3 {[%clk 0:00:20]}  Rxe3 {[%clk 0:00:04]} 37. Rxe3 {[%clk 0:00:18]}  a1=Q {[%clk 0:00:04]} 38. Re8 {[%clk 0:00:19]}  Rc1 {[%clk 0:00:04]} 39. Bd5 {[%clk 0:00:20]}  Rg1+ {[%clk 0:00:03]} 40. Kf3 {[%clk 0:00:21]}  Qd1+ {[%clk 0:00:03]} 41. Ke4 {[%clk 0:00:20]}  Re1+ {[%clk 0:00:03]} 42. Kf4 {[%clk 0:00:20]}  Rxe8 {[%clk 0:00:03]} 43. Bf3 {[%clk 0:00:20]}  Qd4+ {[%clk 0:00:03]} 44. Kg5 {[%clk 0:00:20]}  Qe5+ {[%clk 0:00:04]} 45. Kh4 {[%clk 0:00:21]}  Qf6+ {[%clk 0:00:04]} 46. Kh3 {[%clk 0:00:22]}  Qxf3 {[%clk 0:00:04]} 47. Kh2 {[%clk 0:00:22]}  Qxf2+ {[%clk 0:00:04]} 48. Kh3 {[%clk 0:00:22]}  Qf3 {[%clk 0:00:04]} 49. Kh4 {[%clk 0:00:22]}  Re1 {[%clk 0:00:04]} 50. Kg5 {[%clk 0:00:23]}  Rh1 {[%clk 0:00:04]} 51. g4 {[%clk 0:00:23]}  Be7# {[%clk 0:00:04]} 0-1

[Event "January 9 Early 2024"]
[Site "https://www.chess.com"]
[Date "2024.01.11"]
[Round "1"]
[White "Ferey, Antonin"]
[Black "Donchenko, Alexander"]
[Result "0-1"]
[Board "244"]
[TimeControl "180+1"]
[WhiteFideId "36051454"]
[BlackFideId "24603295"]
[WhiteElo "2500"]
[BlackElo "2940"]
[WhiteTeam "FRA"]
[BlackTeam "GER"]
[WhiteClock "0:00:05"]
[BlackClock "0:00:06"]

1. d4 {[%clk 0:02:58]}  Nf6 {[%clk 0:02:59]} 2. c4 {[%clk 0:02:58]}  e6 {[%clk 0:02:59]} 3. Nf3 {[%clk 0:02:58]}  b6 {[%clk 0:02:59]} 4. g3 {[%clk 0:02:58]}  Ba6 {[%clk 0:02:59]} 5. Qc2 {[%clk 0:02:58]}  c5 {[%clk 0:02:59]} 6. d5 {[%clk 0:02:59]}  exd5 {[%clk 0:02:56]} 7. cxd5 {[%clk 0:03:00]}  Bb7 {[%clk 0:02:57]} 8. Nc3 {[%clk 0:02:59]}  Nxd5 {[%clk 0:02:53]} 9. Bg2 {[%clk 0:02:57]}  Be7 {[%clk 0:02:49]} 10. Ne5 {[%clk 0:02:36]}  Ne3 {[%clk 0:02:29]} 11. Bxe3 {[%clk 0:02:10]}  Bxg2 {[%clk 0:02:29]} 12. Rg1 {[%clk 0:02:08]}  Bb7 {[%clk 0:02:29]} 13. O-O-O {[%clk 0:02:06]}  O-O {[%clk 0:02:26]} 14. Bf4 {[%clk 0:02:04]}  Bf6 {[%clk 0:02:07]} 15. e4 {[%clk 0:01:57]}  g5 {[%clk 0:02:01]} 16. Ng4 {[%clk 0:01:40]}  gxf4 {[%clk 0:01:58]} 17. gxf4 {[%clk 0:01:41]}  Kh8 {[%clk 0:01:56]} 18. e5 {[%clk 0:01:40]}  Bg7 {[%clk 0:01:49]} 19. Rg3 {[%clk 0:01:37]}  Qh4 {[%clk 0:01:34]} 20. Rdd3 {[%clk 0:01:37]}  h5 {[%clk 0:01:02]} 21. Rh3 {[%clk 0:01:34]}  Qxg4 {[%clk 0:01:01]} 22. Rdg3 {[%clk 0:01:34]}  Qxf4+ {[%clk 0:00:58]} 23. Re3 {[%clk 0:01:00]}  h4 {[%clk 0:00:50]} 24. Ne2 {[%clk 0:00:55]}  Qg4 {[%clk 0:00:40]} 25. Reg3 {[%clk 0:00:48]}  Qe4 {[%clk 0:00:38]} 26. Qd2 {[%clk 0:00:08]}  Qh7 {[%clk 0:00:04]} 27. Rg4 {[%clk 0:00:02]}  Bh6 {[%clk 0:00:02]} 28. Rgxh4 {[%clk 0:00:01]}  Bxd2+ {[%clk 0:00:02]} 29. Kxd2 {[%clk 0:00:02]}  Qxh4 {[%clk 0:00:02]} 30. Rxh4+ {[%clk 0:00:02]}  Kg7 {[%clk 0:00:03]} 31. Nf4 {[%clk 0:00:02]}  Rh8 {[%clk 0:00:03]} 32. Rg4+ {[%clk 0:00:02]}  Kf8 {[%clk 0:00:03]} 33. h4 {[%clk 0:00:03]}  Nc6 {[%clk 0:00:04]} 34. Nd3 {[%clk 0:00:02]}  Nd4 {[%clk 0:00:04]} 35. f4 {[%clk 0:00:03]}  Rxh4 {[%clk 0:00:03]} 36. Rxh4 {[%clk 0:00:03]}  Nf3+ {[%clk 0:00:04]} 37. Ke3 {[%clk 0:00:03]}  Nxh4 {[%clk 0:00:05]} 38. f5 {[%clk 0:00:04]}  Nxf5+ {[%clk 0:00:05]} 39. Kf4 {[%clk 0:00:05]}  Nd4 {[%clk 0:00:06]} 0-1

[Event "January 9 Early 2024"]
[Site "https://www.chess.com"]
[Date "2024.01.11"]
[Round "1"]
[White "Fernandez Hernandez, Gerardo"]
[Black "Sipila, Vilka"]
[Result "0-1"]
[Board "246"]
[TimeControl "180+1"]
[WhiteFideId "2207400"]
[BlackFideId "505455"]
[WhiteElo "2320"]
[BlackElo "2657"]
[WhiteTeam "ESP"]
[BlackTeam "FIN"]
[WhiteClock "0:00:06"]
[BlackClock "0:00:53"]

1. e4 {[%clk 0:03:00]}  c5 {[%clk 0:02:59]} 2. d3 {[%clk 0:03:00]}  e6 {[%clk 0:02:58]} 3. g3 {[%clk 0:03:00]}  Nc6 {[%clk 0:02:58]} 4. Bg2 {[%clk 0:03:01]}  d5 {[%clk 0:02:58]} 5. Nd2 {[%clk 0:03:00]}  Nf6 {[%clk 0:02:58]} 6. Ngf3 {[%clk 0:03:00]}  Be7 {[%clk 0:02:58]} 7. O-O {[%clk 0:03:00]}  O-O {[%clk 0:02:58]} 8. e5 {[%clk 0:03:00]}  Nd7 {[%clk 0:02:58]} 9. Re1 {[%clk 0:03:01]}  Qc7 {[%clk 0:02:59]} 10. Qe2 {[%clk 0:03:01]}  b5 {[%clk 0:02:59]} 11. h4 {[%clk 0:03:01]}  Bb7 {[%clk 0:02:58]} 12. Nf1 {[%clk 0:03:00]}  Rfc8 {[%clk 0:02:57]} 13. Bf4 {[%clk 0:02:59]}  Qd8 {[%clk 0:02:57]} 14. c3 {[%clk 0:02:52]}  a5 {[%clk 0:02:56]} 15. a4 {[%clk 0:02:47]}  bxa4 {[%clk 0:02:50]} 16. Rxa4 {[%clk 0:02:45]}  Ba6 {[%clk 0:02:50]} 17. h5 {[%clk 0:02:30]}  h6 {[%clk 0:02:48]} 18. N1h2 {[%clk 0:02:26]}  Kh8 {[%clk 0:02:46]} 19. Qd2 {[%clk 0:02:24]}  Qf8 {[%clk 0:02:46]} 20. Ng4 {[%clk 0:02:22]}  Rab8 {[%clk 0:02:46]} 21. Nxh6 {[%clk 0:02:16]}  gxh6 {[%clk 0:02:47]} 22. Bxh6 {[%clk 0:02:16]}  Qg8 {[%clk 0:02:47]} 23. Bh3 {[%clk 0:02:10]}  Rc7 {[%clk 0:02:43]} 24. Rg4 {[%clk 0:02:09]}  Qh7 {[%clk 0:02:39]} 25. Bg7+ {[%clk 0:01:59]}  Qxg7 {[%clk 0:02:39]} 26. Rxg7 {[%clk 0:01:58]}  Kxg7 {[%clk 0:02:40]} 27. h6+ {[%clk 0:01:56]}  Kh8 {[%clk 0:02:38]} 28. Ng5 {[%clk 0:01:52]}  Rf8 {[%clk 0:02:36]} 29. Qf4 {[%clk 0:01:42]}  Nd8 {[%clk 0:02:30]} 30. Re3 {[%clk 0:01:20]}  d4 {[%clk 0:02:25]} 31. Rf3 {[%clk 0:01:15]}  Rb7 {[%clk 0:02:20]} 32. cxd4 {[%clk 0:01:11]}  cxd4 {[%clk 0:02:21]} 33. Qxd4 {[%clk 0:01:11]}  Bxg5 {[%clk 0:02:19]} 34. Qd6 {[%clk 0:01:04]}  Bb5 {[%clk 0:02:17]} 35. Bg2 {[%clk 0:00:49]}  Rb6 {[%clk 0:02:11]} 36. Qa3 {[%clk 0:00:48]}  Bxh6 {[%clk 0:02:10]} 37. Rf6 {[%clk 0:00:43]}  Nxf6 {[%clk 0:02:08]} 38. exf6 {[%clk 0:00:41]}  Bc6 {[%clk 0:02:02]} 39. f4 {[%clk 0:00:33]}  Bxg2 {[%clk 0:02:01]} 40. Kxg2 {[%clk 0:00:34]}  Rg8 {[%clk 0:01:57]} 41. Qc5 {[%clk 0:00:30]}  Rxb2+ {[%clk 0:01:55]} 42. Kf3 {[%clk 0:00:28]}  a4 {[%clk 0:01:48]} 43. g4 {[%clk 0:00:20]}  Rh2 {[%clk 0:01:37]} 44. g5 {[%clk 0:00:18]}  Bf8 {[%clk 0:01:36]} 45. Qg1 {[%clk 0:00:16]}  Rh7 {[%clk 0:01:32]} 46. Qb6 {[%clk 0:00:13]}  a3 {[%clk 0:01:06]} 47. Qxd8 {[%clk 0:00:10]}  a2 {[%clk 0:01:06]} 48. Qa5 {[%clk 0:00:10]}  Rh2 {[%clk 0:01:06]} 49. Kg3 {[%clk 0:00:10]}  Rc2 {[%clk 0:01:03]} 50. Qe1 {[%clk 0:00:10]}  Bh6 {[%clk 0:01:02]} 51. Qh1 {[%clk 0:00:10]}  Rg6 {[%clk 0:01:01]} 52. Kf3 {[%clk 0:00:09]}  Kh7 {[%clk 0:00:58]} 53. gxh6 {[%clk 0:00:08]}  Rxh6 {[%clk 0:00:59]} 54. Qg1 {[%clk 0:00:08]}  Rg6 {[%clk 0:00:59]} 55. Qh1+ {[%clk 0:00:09]}  Kg8 {[%clk 0:00:59]} 56. Ke3 {[%clk 0:00:08]}  Rxf6 {[%clk 0:00:58]} 57. Qa8+ {[%clk 0:00:08]}  Kg7 {[%clk 0:00:58]} 58. Qa4 {[%clk 0:00:08]}  Rh2 {[%clk 0:00:57]} 59. f5 {[%clk 0:00:08]}  Rxf5 {[%clk 0:00:56]} 60. Qg4+ {[%clk 0:00:07]}  Kf8 {[%clk 0:00:55]} 61. Qb4+ {[%clk 0:00:07]}  Kg8 {[%clk 0:00:55]} 62. Qg4+ {[%clk 0:00:07]}  Kh7 {[%clk 0:00:55]} 63. Qg3 {[%clk 0:00:06]}  Rh1 {[%clk 0:00:53]} 0-1

[Event "January 9 Early 2024"]
[Site "https://www.chess.com"]
[Date "2024.01.11"]
[Round "1"]
[White "Tharushi, T H D Niklesha"]
[Black "Caspi, Israel"]
[Result "0-1"]
[Board "254"]
[TimeControl "180+1"]
[WhiteFideId "9918264"]
[BlackFideId "2807394"]
[WhiteElo "2256"]
[BlackElo "2609"]
[WhiteTeam "SRI"]
[BlackTeam "ISR"]
[WhiteClock "0:00:10"]
[BlackClock "0:00:20"]

1. e4 {[%clk 0:03:00]}  e5 {[%clk 0:02:58]} 2. Nf3 {[%clk 0:03:00]}  Nc6 {[%clk 0:02:54]} 3. Bc4 {[%clk 0:02:59]}  Nf6 {[%clk 0:02:52]} 4. d3 {[%clk 0:02:58]}  h6 {[%clk 0:02:43]} 5. c3 {[%clk 0:02:54]}  d6 {[%clk 0:02:42]} 6. a4 {[%clk 0:02:51]}  g5 {[%clk 0:02:39]} 7. Qb3 {[%clk 0:02:49]}  Qe7 {[%clk 0:02:36]} 8. a5 {[%clk 0:02:49]}  a6 {[%clk 0:02:36]} 9. h3 {[%clk 0:02:48]}  Bg7 {[%clk 0:02:35]} 10. Nbd2 {[%clk 0:02:43]}  O-O {[%clk 0:02:34]} 11. g4 {[%clk 0:02:43]}  Nd8 {[%clk 0:02:31]} 12. Nf1 {[%clk 0:02:42]}  Ne6 {[%clk 0:02:29]} 13. Ng3 {[%clk 0:02:41]}  Nf4 {[%clk 0:02:30]} 14. Bxf4 {[%clk 0:02:27]}  exf4 {[%clk 0:02:27]} 15. Nf5 {[%clk 0:02:26]}  Bxf5 {[%clk 0:02:27]} 16. gxf5 {[%clk 0:02:27]}  c6 {[%clk 0:02:27]} 17. O-O-O {[%clk 0:02:16]}  Rad8 {[%clk 0:02:21]} 18. Rhe1 {[%clk 0:02:09]}  Qc7 {[%clk 0:02:10]} 19. Qa3 {[%clk 0:02:07]}  d5 {[%clk 0:02:05]} 20. Bb3 {[%clk 0:02:00]}  dxe4 {[%clk 0:01:57]} 21. dxe4 {[%clk 0:01:59]}  Rxd1+ {[%clk 0:01:57]} 22. Bxd1 {[%clk 0:02:00]}  Nd7 {[%clk 0:01:57]} 23. Bb3 {[%clk 0:01:48]}  Ne5 {[%clk 0:01:55]} 24. Nxe5 {[%clk 0:01:20]}  Qxe5 {[%clk 0:01:56]} 25. f3 {[%clk 0:01:18]}  Rd8 {[%clk 0:01:48]} 26. Qb4 {[%clk 0:01:18]}  Rd7 {[%clk 0:01:38]} 27. Rd1 {[%clk 0:01:18]}  Bf8 {[%clk 0:01:29]} 28. Qb6 {[%clk 0:01:13]}  Bc5 {[%clk 0:01:17]} 29. Rxd7 {[%clk 0:01:08]}  Bxb6 {[%clk 0:01:15]} 30. axb6 {[%clk 0:01:07]}  Qb5 {[%clk 0:01:14]} 31. Bxf7+ {[%clk 0:01:06]}  Kf8 {[%clk 0:01:08]} 32. Bh5 {[%clk 0:00:56]}  Qxb6 {[%clk 0:01:03]} 33. f6 {[%clk 0:00:46]}  Qe3+ {[%clk 0:00:56]} 34. Kc2 {[%clk 0:00:43]}  Qb6 {[%clk 0:00:48]} 35. e5 {[%clk 0:00:41]}  Kg8 {[%clk 0:00:40]} 36. f7+ {[%clk 0:00:37]}  Kg7 {[%clk 0:00:38]} 37. e6 {[%clk 0:00:37]}  Qf2+ {[%clk 0:00:38]} 38. Kb1 {[%clk 0:00:26]}  Qf1+ {[%clk 0:00:38]} 39. Kc2 {[%clk 0:00:12]}  Qe2+ {[%clk 0:00:38]} 40. Kc1 {[%clk 0:00:13]}  Qxe6 {[%clk 0:00:34]} 41. Rxb7 {[%clk 0:00:12]}  Qxh3 {[%clk 0:00:21]} 42. Rb8 {[%clk 0:00:09]}  Qf1+ {[%clk 0:00:21]} 43. Kc2 {[%clk 0:00:09]}  Qe2+ {[%clk 0:00:21]} 44. Kb3 {[%clk 0:00:09]}  Qe6+ {[%clk 0:00:21]} 45. Ka3 {[%clk 0:00:10]}  Qd6+ {[%clk 0:00:21]} 46. Ka4 {[%clk 0:00:10]}  Qxb8 {[%clk 0:00:21]} 47. b4 {[%clk 0:00:11]}  Kf8 {[%clk 0:00:20]} 48. Bg6 {[%clk 0:00:09]}  Qb5+ {[%clk 0:00:19]} 49. Kb3 {[%clk 0:00:10]}  Qe5 {[%clk 0:00:20]} 50. Be4 {[%clk 0:00:10]}  g4 {[%clk 0:00:19]} 51. Bxc6 {[%clk 0:00:10]}  g3 {[%clk 0:00:20]} 0-1

[Event "January 9 Early 2024"]
[Site "https://www.chess.com"]
[Date "2024.01.11"]
[Round "1"]
[White "Shohat, Yotam"]
[Black "Novozhilov, Semen"]
[Result "1-0"]
[Board "255"]
[TimeControl "180+1"]
[WhiteFideId "2813955"]
[BlackFideId "24289167"]
[WhiteElo "2414"]
[BlackElo "2704"]
[WhiteTeam "ISR"]
[BlackTeam "RUS"]
[WhiteClock "0:00:07"]
[BlackClock "0:00:18"]

1. e4 {[%clk 0:02:57]}  c5 {[%clk 0:02:57]} 2. Nf3 {[%clk 0:02:56]}  Nc6 {[%clk 0:02:56]} 3. Bb5 {[%clk 0:02:53]}  g6 {[%clk 0:02:56]} 4. Bxc6 {[%clk 0:02:52]}  bxc6 {[%clk 0:02:56]} 5. O-O {[%clk 0:02:50]}  Bg7 {[%clk 0:02:56]} 6. Re1 {[%clk 0:02:50]}  Nh6 {[%clk 0:02:56]} 7. c3 {[%clk 0:02:50]}  O-O {[%clk 0:02:56]} 8. d4 {[%clk 0:02:50]}  cxd4 {[%clk 0:02:56]} 9. cxd4 {[%clk 0:02:50]}  d5 {[%clk 0:02:56]} 10. e5 {[%clk 0:02:50]}  f6 {[%clk 0:02:56]} 11. h3 {[%clk 0:02:37]}  Nf7 {[%clk 0:02:47]} 12. Bf4 {[%clk 0:02:31]}  Qb6 {[%clk 0:02:47]} 13. b3 {[%clk 0:02:28]}  Nd8 {[%clk 0:02:46]} 14. Nc3 {[%clk 0:02:20]}  Ne6 {[%clk 0:02:44]} 15. Bg3 {[%clk 0:02:20]}  a5 {[%clk 0:02:39]} 16. Na4 {[%clk 0:02:19]}  Qa7 {[%clk 0:02:38]} 17. Rc1 {[%clk 0:02:19]}  Bd7 {[%clk 0:02:37]} 18. exf6 {[%clk 0:02:12]}  exf6 {[%clk 0:02:35]} 19. Bd6 {[%clk 0:02:08]}  Rfe8 {[%clk 0:02:33]} 20. Qd2 {[%clk 0:02:04]}  h5 {[%clk 0:02:30]} 21. Nc5 {[%clk 0:01:29]}  Nxc5 {[%clk 0:02:30]} 22. Bxc5 {[%clk 0:01:30]}  Qa6 {[%clk 0:02:30]} 23. Nh4 {[%clk 0:01:23]}  Kh7 {[%clk 0:02:26]} 24. Qc2 {[%clk 0:01:19]}  f5 {[%clk 0:02:25]} 25. Nf3 {[%clk 0:01:16]}  Bh6 {[%clk 0:02:11]} 26. Rcd1 {[%clk 0:01:09]}  Re4 {[%clk 0:02:10]} 27. Ne5 {[%clk 0:01:05]}  Be8 {[%clk 0:02:10]} 28. f3 {[%clk 0:01:01]}  Re3 {[%clk 0:02:08]} 29. Qf2 {[%clk 0:00:53]}  f4 {[%clk 0:01:55]} 30. Qh4 {[%clk 0:00:52]}  Qb7 {[%clk 0:01:30]} 31. Kh2 {[%clk 0:00:37]}  a4 {[%clk 0:01:30]} 32. b4 {[%clk 0:00:37]}  a3 {[%clk 0:01:30]} 33. Rxe3 {[%clk 0:00:32]}  fxe3 {[%clk 0:01:29]} 34. Re1 {[%clk 0:00:33]}  g5 {[%clk 0:00:44]} 35. Qg3 {[%clk 0:00:28]}  Qg7 {[%clk 0:00:44]} 36. Rxe3 {[%clk 0:00:23]}  g4 {[%clk 0:00:35]} 37. Re2 {[%clk 0:00:20]}  Qf6 {[%clk 0:00:35]} 38. Nd3 {[%clk 0:00:14]}  Bg6 {[%clk 0:00:35]} 39. Qc7+ {[%clk 0:00:10]}  Kg8 {[%clk 0:00:29]} 40. Be7 {[%clk 0:00:06]}  Qf7 {[%clk 0:00:22]} 41. Ne5 {[%clk 0:00:05]}  Qf4+ {[%clk 0:00:21]} 42. g3 {[%clk 0:00:05]}  Qf5 {[%clk 0:00:20]} 43. hxg4 {[%clk 0:00:04]}  hxg4 {[%clk 0:00:20]} 44. fxg4 {[%clk 0:00:05]}  Qf7 {[%clk 0:00:18]} 45. Kg1 {[%clk 0:00:04]}  Be4 {[%clk 0:00:17]} 46. Nxf7 {[%clk 0:00:04]}  Kxf7 {[%clk 0:00:16]} 47. Bg5+ {[%clk 0:00:05]}  Kg6 {[%clk 0:00:16]} 48. Bxh6 {[%clk 0:00:04]}  Kxh6 {[%clk 0:00:17]} 49. Rh2+ {[%clk 0:00:05]}  Kg5 {[%clk 0:00:17]} 50. Qf4+ {[%clk 0:00:05]}  Kg6 {[%clk 0:00:18]} 51. Rh6+ {[%clk 0:00:06]}  Kg7 {[%clk 0:00:18]} 52. Qf6+ {[%clk 0:00:07]} 1-0

[Event "January 9 Early 2024"]
[Site "https://www.chess.com"]
[Date "2024.01.11"]
[Round "1"]
[White "Coelho, Ramyres Santana"]
[Black "Cordoba Roa, Angel Gabriel"]
[Result "0-1"]
[Board "257"]
[TimeControl "180+1"]
[WhiteFideId "2120690"]
[BlackFideId "3957624"]
[WhiteElo "2296"]
[BlackElo "2639"]
[WhiteTeam "BRA"]
[BlackTeam "COL"]
[WhiteClock "0:00:04"]
[BlackClock "0:00:17"]

1. e4 {[%clk 0:02:59]}  e5 {[%clk 0:02:59]} 2. Nf3 {[%clk 0:02:52]}  Nc6 {[%clk 0:02:43]} 3. d4 {[%clk 0:02:51]}  exd4 {[%clk 0:02:43]} 4. Bc4 {[%clk 0:02:51]}  Nf6 {[%clk 0:02:43]} 5. e5 {[%clk 0:02:50]}  d5 {[%clk 0:02:43]} 6. Bb5 {[%clk 0:02:48]}  Nd7 {[%clk 0:02:42]} 7. O-O {[%clk 0:02:46]}  Ndb8 {[%clk 0:02:42]} 8. Nxd4 {[%clk 0:02:42]}  Be7 {[%clk 0:02:42]} 9. Nxc6 {[%clk 0:02:41]}  bxc6 {[%clk 0:02:43]} 10. Bd3 {[%clk 0:02:41]}  O-O {[%clk 0:02:43]} 11. f4 {[%clk 0:02:41]}  a5 {[%clk 0:02:39]} 12. f5 {[%clk 0:02:39]}  Bc5+ {[%clk 0:02:32]} 13. Kh1 {[%clk 0:02:39]}  Re8 {[%clk 0:02:32]} 14. Bf4 {[%clk 0:02:16]}  Ba6 {[%clk 0:02:26]} 15. Nd2 {[%clk 0:01:59]}  Bxd3 {[%clk 0:02:21]} 16. cxd3 {[%clk 0:02:00]}  Nd7 {[%clk 0:02:22]} 17. Nf3 {[%clk 0:01:58]}  Bf8 {[%clk 0:02:18]} 18. d4 {[%clk 0:01:54]}  c5 {[%clk 0:02:17]} 19. Qd3 {[%clk 0:01:37]}  Rb8 {[%clk 0:02:06]} 20. b3 {[%clk 0:01:33]}  cxd4 {[%clk 0:02:05]} 21. Qxd4 {[%clk 0:01:32]}  Nc5 {[%clk 0:02:06]} 22. Rae1 {[%clk 0:01:26]}  Ne4 {[%clk 0:02:03]} 23. h3 {[%clk 0:01:07]}  Rb4 {[%clk 0:02:03]} 24. Qa7 {[%clk 0:00:59]}  Nf2+ {[%clk 0:01:46]} 25. Rxf2 {[%clk 0:00:55]}  Rxf4 {[%clk 0:01:47]} 26. g4 {[%clk 0:00:40]}  d4 {[%clk 0:01:39]} 27. Qxa5 {[%clk 0:00:36]}  d3 {[%clk 0:00:58]} 28. Qd2 {[%clk 0:00:37]}  Rb4 {[%clk 0:00:51]} 29. Rd1 {[%clk 0:00:37]}  Qa8 {[%clk 0:00:51]} 30. Qxd3 {[%clk 0:00:35]}  Rxe5 {[%clk 0:00:50]} 31. Kh2 {[%clk 0:00:33]}  Re8 {[%clk 0:00:45]} 32. a4 {[%clk 0:00:31]}  Bd6+ {[%clk 0:00:44]} 33. Kg2 {[%clk 0:00:30]}  Reb8 {[%clk 0:00:39]} 34. Rb2 {[%clk 0:00:25]}  Rxa4 {[%clk 0:00:34]} 35. Re2 {[%clk 0:00:18]}  Rab4 {[%clk 0:00:32]} 36. Rb1 {[%clk 0:00:16]}  h6 {[%clk 0:00:26]} 37. f6 {[%clk 0:00:16]}  gxf6 {[%clk 0:00:20]} 38. Qe3 {[%clk 0:00:13]}  Rf4 {[%clk 0:00:20]} 39. Qd3 {[%clk 0:00:11]}  Re8 {[%clk 0:00:19]} 40. Rxe8+ {[%clk 0:00:11]}  Qxe8 {[%clk 0:00:20]} 41. Rf1 {[%clk 0:00:11]}  Kg7 {[%clk 0:00:19]} 42. Re1 {[%clk 0:00:11]}  Rxf3 {[%clk 0:00:17]} 43. Qxf3 {[%clk 0:00:08]}  Qxe1 {[%clk 0:00:18]} 44. Qd3 {[%clk 0:00:04]}  Qb4 {[%clk 0:00:16]} 45. h4 {[%clk 0:00:03]}  Qxg4+ {[%clk 0:00:16]} 46. Kf2 {[%clk 0:00:04]}  Qxh4+ {[%clk 0:00:17]} 47. Ke2 {[%clk 0:00:05]}  Qg4+ {[%clk 0:00:17]} 48. Kd2 {[%clk 0:00:05]}  h5 {[%clk 0:00:18]} 49. Qa6 {[%clk 0:00:04]}  h4 {[%clk 0:00:18]} 50. Qc8 {[%clk 0:00:04]}  Qxc8 {[%clk 0:00:17]} 0-1